[Event "Betsys MČR v online bleskovém šachu 2021"]
[Site "Chess.com"]
[Date "2021.04.17"]
[Round "9"]
[White "Loveforever_Pepi"]
[Black "Akdub"]
[Result "1-0"]
[WhiteElo "2283"]
[BlackElo "2098"]
[TimeControl "180+1"]
[EndTime "10:31:51 PDT"]
[Termination "Uživatel Loveforever_Pepi zvítězil po vzdání soupeře"]

1. e4 {[%clk 0:03:00.9]} 1... e6 {[%clk 0:03:00]} 2. d4 {[%clk 0:03:00.1]} 2...
d5 {[%clk 0:03:00.5]} 3. exd5 {[%clk 0:02:55.5]} 3... exd5 {[%clk 0:03:00]} 4.
c4 {[%clk 0:02:56.1]} 4... c6 {[%clk 0:02:59.6]} 5. Nc3 {[%clk 0:02:56.3]} 5...
Nf6 {[%clk 0:02:52.6]} 6. Nf3 {[%clk 0:02:55.2]} 6... Be6 {[%clk 0:02:44.9]} 7.
cxd5 {[%clk 0:02:52.1]} 7... Nxd5 {[%clk 0:02:44.2]} 8. Bd3 {[%clk 0:02:49.9]}
8... Nd7 {[%clk 0:02:43.3]} 9. O-O {[%clk 0:02:44.8]} 9... N7f6 {[%clk
0:02:38.5]} 10. Ne5 {[%clk 0:02:33.3]} 10... Bd6 {[%clk 0:02:33.6]} 11. Bg5
{[%clk 0:02:31.1]} 11... h6 {[%clk 0:02:30.4]} 12. Bh4 {[%clk 0:02:29.9]} 12...
Qc7 {[%clk 0:02:26.6]} 13. Bg3 {[%clk 0:02:23.6]} 13... O-O {[%clk 0:02:15.1]}
14. Re1 {[%clk 0:02:19.9]} 14... Rfe8 {[%clk 0:02:14.4]} 15. Rc1 {[%clk
0:02:15.5]} 15... a6 {[%clk 0:02:06.1]} 16. Bb1 {[%clk 0:02:00]} 16... Rad8
{[%clk 0:02:00.5]} 17. Qd3 {[%clk 0:01:53.7]} 17... Nb4 {[%clk 0:01:42.7]} 18.
Qf3 {[%clk 0:01:44]} 18... Qb6 {[%clk 0:01:18.8]} 19. Ne4 {[%clk 0:01:14.7]}
19... Be7 {[%clk 0:00:53.5]} 20. Nc5 {[%clk 0:00:54.3]} 20... Rxd4 {[%clk
0:00:42.6]} 21. Nxe6 {[%clk 0:00:46.8]} 21... fxe6 {[%clk 0:00:41.1]} 22. Ng6
{[%clk 0:00:44.6]} 22... Bd6 {[%clk 0:00:35.6]} 23. Bxd6 {[%clk 0:00:12.3]}
23... Rxd6 {[%clk 0:00:35.4]} 24. Ne5 {[%clk 0:00:11.6]} 24... Nbd5 {[%clk
0:00:27.9]} 25. Nc4 {[%clk 0:00:10.7]} 25... Qd8 {[%clk 0:00:26.2]} 26. Nxd6
{[%clk 0:00:10.4]} 26... Qxd6 {[%clk 0:00:26.9]} 27. g3 {[%clk 0:00:09.9]} 27...
e5 {[%clk 0:00:26.3]} 28. Kg2 {[%clk 0:00:09.5]} 28... e4 {[%clk 0:00:26.6]} 29.
Bxe4 {[%clk 0:00:08.4]} 29... Nxe4 {[%clk 0:00:26.2]} 30. Rxe4 {[%clk
0:00:08.5]} 30... Rf8 {[%clk 0:00:26.4]} 31. Qe2 {[%clk 0:00:07.9]} 31... Nf6
{[%clk 0:00:24.4]} 32. Re6 {[%clk 0:00:06.1]} 32... Qd5+ {[%clk 0:00:24.6]} 33.
Kg1 {[%clk 0:00:06.1]} 33... Qg5 {[%clk 0:00:20.1]} 34. Re1 {[%clk 0:00:04.1]}
34... Nd5 {[%clk 0:00:20]} 35. Re8 {[%clk 0:00:03.8]} 35... Rxe8 {[%clk
0:00:17.5]} 36. Qxe8+ {[%clk 0:00:04.7]} 36... Kh7 {[%clk 0:00:18]} 37. Qe4+
{[%clk 0:00:04.4]} 37... Kg8 {[%clk 0:00:18.2]} 38. h4 {[%clk 0:00:04.7]} 38...
Qf6 {[%clk 0:00:17.4]} 39. Qe2 {[%clk 0:00:04.4]} 39... Qg6 {[%clk 0:00:15.9]}
40. a3 {[%clk 0:00:04.4]} 40... Kh7 {[%clk 0:00:15]} 41. Qe4 {[%clk 0:00:04.1]}
41... Qxe4 {[%clk 0:00:13.7]} 42. Rxe4 {[%clk 0:00:05]} 42... Kg6 {[%clk
0:00:14.1]} 43. Rd4 {[%clk 0:00:04.8]} 43... Kf6 {[%clk 0:00:14.7]} 44. Kg2
{[%clk 0:00:05]} 44... Ke5 {[%clk 0:00:15.2]} 45. Rd1 {[%clk 0:00:05.3]} 45...
Ke4 {[%clk 0:00:15.4]} 46. Re1+ {[%clk 0:00:04.7]} 46... Kd3 {[%clk 0:00:15.1]}
47. Re8 {[%clk 0:00:03.9]} 47... Kc2 {[%clk 0:00:13.3]} 48. Rg8 {[%clk
0:00:04.4]} 48... Kxb2 {[%clk 0:00:13.1]} 49. Rxg7 {[%clk 0:00:04.6]} 49... b5
{[%clk 0:00:13.2]} 50. g4 {[%clk 0:00:04.8]} 50... c5 {[%clk 0:00:13]} 51. g5
{[%clk 0:00:04.6]} 51... Nf4+ {[%clk 0:00:12.4]} 52. Kg3 {[%clk 0:00:04.2]}
52... hxg5 {[%clk 0:00:13.3]} 53. Rxg5 {[%clk 0:00:01.3]} 53... Kxa3 {[%clk
0:00:11.5]} 54. Rxc5 {[%clk 0:00:01.3]} 54... b4 {[%clk 0:00:11.7]} 55. Kxf4
{[%clk 0:00:01.4]} 55... b3 {[%clk 0:00:11.6]} 56. Rc6 {[%clk 0:00:01.6]} 56...
a5 {[%clk 0:00:11.3]} 57. Rb6 {[%clk 0:00:01.7]} 57... a4 {[%clk 0:00:11.2]} 58.
h5 {[%clk 0:00:02.3]} 58... b2 {[%clk 0:00:11.2]} 59. h6 {[%clk 0:00:02.9]}
59... Ka2 {[%clk 0:00:11.8]} 60. h7 {[%clk 0:00:03.1]} 60... b1=Q {[%clk
0:00:12.1]} 61. Rxb1 {[%clk 0:00:03.5]} 61... Kxb1 {[%clk 0:00:12.5]} 62. h8=Q
{[%clk 0:00:04.1]} 62... a3 {[%clk 0:00:13.4]} 63. Qc3 {[%clk 0:00:03.7]} 63...
a2 {[%clk 0:00:14.3]} 64. Qb3+ {[%clk 0:00:04]} 64... Ka1 {[%clk 0:00:14]} 65.
Qxa2+ {[%clk 0:00:04.9]} 65... Kxa2 {[%clk 0:00:14]} 66. Ke5 {[%clk 0:00:05.5]}
66... Kb3 {[%clk 0:00:14.9]} 67. f4 {[%clk 0:00:05.8]} 67... Kc4 {[%clk
0:00:15.8]} 68. f5 {[%clk 0:00:06.3]} 68... Kd3 {[%clk 0:00:16.7]} 69. f6 {[%clk
0:00:06.7]} 69... Ke3 {[%clk 0:00:17.6]} 70. f7 {[%clk 0:00:07.1]} 70... Kd3
{[%clk 0:00:18.5]} 71. f8=Q {[%clk 0:00:07.6]} 1-0

[Event "Betsys MČR v online bleskovém šachu 2021"]
[Site "Chess.com"]
[Date "2021.04.17"]
[Round "9"]
[White "Vitana"]
[Black "Kokos3"]
[Result "0-1"]
[WhiteElo "1769"]
[BlackElo "1581"]
[TimeControl "180+1"]
[EndTime "10:31:54 PDT"]
[Termination "Uživatel Kokos3 zvítězil matem"]

1. e4 {[%clk 0:02:32.1]} 1... e5 {[%clk 0:02:57.7]} 2. Nc3 {[%clk 0:02:31.1]}
2... Nf6 {[%clk 0:02:53.1]} 3. Bc4 {[%clk 0:02:28.5]} 3... d6 {[%clk 0:02:49]}
4. d3 {[%clk 0:02:28.4]} 4... Nc6 {[%clk 0:02:45.3]} 5. f4 {[%clk 0:02:27.3]}
5... exf4 {[%clk 0:02:38.3]} 6. Bxf4 {[%clk 0:02:26.6]} 6... Ne5 {[%clk
0:02:34.1]} 7. Bb3 {[%clk 0:02:25.3]} 7... Bg4 {[%clk 0:02:26.7]} 8. Nge2 {[%clk
0:02:21.6]} 8... Qd7 {[%clk 0:02:18.5]} 9. h3 {[%clk 0:02:16.9]} 9... Bh5 {[%clk
0:01:56.7]} 10. Qd2 {[%clk 0:02:12.7]} 10... Nc6 {[%clk 0:01:38.3]} 11. O-O-O
{[%clk 0:02:05.3]} 11... O-O-O {[%clk 0:01:36.9]} 12. g4 {[%clk 0:02:03.8]}
12... Bg6 {[%clk 0:01:36]} 13. Bg5 {[%clk 0:02:00.9]} 13... Be7 {[%clk
0:01:32.9]} 14. Rhf1 {[%clk 0:01:59.6]} 14... Rdf8 {[%clk 0:01:21.3]} 15. Nf4
{[%clk 0:01:56.3]} 15... Nd4 {[%clk 0:01:14.8]} 16. Qf2 {[%clk 0:01:50]} 16...
Nxb3+ {[%clk 0:01:12]} 17. axb3 {[%clk 0:01:49.4]} 17... Kb8 {[%clk 0:01:10.8]}
18. Bxf6 {[%clk 0:01:37.3]} 18... Bxf6 {[%clk 0:01:09.2]} 19. Nfd5 {[%clk
0:01:37.2]} 19... Bxc3 {[%clk 0:01:05.2]} 20. bxc3 {[%clk 0:01:33.8]} 20... f6
{[%clk 0:01:03.6]} 21. Kb2 {[%clk 0:01:32.3]} 21... Bf7 {[%clk 0:01:00.9]} 22.
Nb4 {[%clk 0:01:31]} 22... Re8 {[%clk 0:00:56.5]} 23. Ra1 {[%clk 0:01:29.3]}
23... c5 {[%clk 0:00:47.7]} 24. Na2 {[%clk 0:01:17.1]} 24... b6 {[%clk
0:00:46.5]} 25. Nc1 {[%clk 0:01:16.3]} 25... d5 {[%clk 0:00:46]} 26. exd5 {[%clk
0:01:14.1]} 26... Bxd5 {[%clk 0:00:45.3]} 27. Ne2 {[%clk 0:01:12.4]} 27... Re7
{[%clk 0:00:43.7]} 28. Nf4 {[%clk 0:01:09.6]} 28... Bb7 {[%clk 0:00:43.4]} 29.
Rae1 {[%clk 0:00:59.1]} 29... Rhe8 {[%clk 0:00:43]} 30. Rxe7 {[%clk 0:00:47.2]}
30... Rxe7 {[%clk 0:00:42.8]} 31. Re1 {[%clk 0:00:42.6]} 31... Qe8 {[%clk
0:00:39.8]} 32. Rxe7 {[%clk 0:00:41.6]} 32... Qxe7 {[%clk 0:00:39.8]} 33. d4
{[%clk 0:00:38]} 33... g5 {[%clk 0:00:33.4]} 34. Nd3 {[%clk 0:00:36.1]} 34...
cxd4 {[%clk 0:00:28.8]} 35. Qxd4 {[%clk 0:00:35.3]} 35... Qe6 {[%clk 0:00:25]}
36. Nb4 {[%clk 0:00:33.7]} 36... f5 {[%clk 0:00:22.3]} 37. Qd8+ {[%clk
0:00:28.8]} 37... Qc8 {[%clk 0:00:22]} 38. Qxg5 {[%clk 0:00:26.8]} 38... fxg4
{[%clk 0:00:21]} 39. Qxg4 {[%clk 0:00:25.3]} 39... Qxg4 {[%clk 0:00:20]} 40.
hxg4 {[%clk 0:00:25.6]} 40... Bc8 {[%clk 0:00:19.7]} 41. g5 {[%clk 0:00:24.8]}
41... Kc7 {[%clk 0:00:19.5]} 42. Nd5+ {[%clk 0:00:23.9]} 42... Kd6 {[%clk
0:00:19.3]} 43. Nf6 {[%clk 0:00:23.9]} 43... Bf5 {[%clk 0:00:19]} 44. c4 {[%clk
0:00:19.5]} 44... Ke5 {[%clk 0:00:18.7]} 45. Ne8 {[%clk 0:00:18.3]} 45... Kf4
{[%clk 0:00:17.4]} 46. Nc7 {[%clk 0:00:16.6]} 46... Kxg5 {[%clk 0:00:14.8]} 47.
Kc3 {[%clk 0:00:17.1]} 47... h5 {[%clk 0:00:13.9]} 48. Kd2 {[%clk 0:00:17.2]}
48... h4 {[%clk 0:00:14]} 49. Nd5 {[%clk 0:00:16.3]} 49... h3 {[%clk 0:00:12.8]}
50. Ke2 {[%clk 0:00:15.7]} 50... h2 {[%clk 0:00:12.2]} 51. Ne7 {[%clk 0:00:15]}
51... h1=Q {[%clk 0:00:10.9]} 52. Nxf5 {[%clk 0:00:15.9]} 52... Kxf5 {[%clk
0:00:10.7]} 53. Kd3 {[%clk 0:00:16.1]} 53... Qe4+ {[%clk 0:00:09.9]} 54. Kd2
{[%clk 0:00:16.1]} 54... Ke5 {[%clk 0:00:10]} 55. Kc3 {[%clk 0:00:15.4]} 55...
Qd4+ {[%clk 0:00:09.9]} 56. Kb4 {[%clk 0:00:15.4]} 56... a5+ {[%clk 0:00:10]}
57. Kb5 {[%clk 0:00:14.7]} 57... Qc5+ {[%clk 0:00:08.7]} 58. Ka6 {[%clk
0:00:14.6]} 58... a4 {[%clk 0:00:08.6]} 59. bxa4 {[%clk 0:00:14.2]} 59... Qxc4+
{[%clk 0:00:08.7]} 60. Kxb6 {[%clk 0:00:15.1]} 60... Qxa4 {[%clk 0:00:08.6]} 61.
Kc5 {[%clk 0:00:12.8]} 61... Qxc2+ {[%clk 0:00:08.4]} 62. Kb4 {[%clk 0:00:13.3]}
62... Kd4 {[%clk 0:00:07.5]} 63. Kb5 {[%clk 0:00:13.5]} 63... Qc5+ {[%clk
0:00:06.9]} 64. Ka6 {[%clk 0:00:13.7]} 64... Qb4 {[%clk 0:00:06]} 65. Ka7 {[%clk
0:00:13.6]} 65... Kc5 {[%clk 0:00:05.9]} 66. Ka8 {[%clk 0:00:14.5]} 66... Kc6
{[%clk 0:00:06.1]} 67. Ka7 {[%clk 0:00:14.1]} 67... Qb7# {[%clk 0:00:05.9]} 0-1

[Event "Betsys MČR v online bleskovém šachu 2021"]
[Site "Chess.com"]
[Date "2021.04.17"]
[Round "9"]
[White "DavidekIII"]
[Black "koky_3"]
[Result "1-0"]
[WhiteElo "2205"]
[BlackElo "2043"]
[TimeControl "180+1"]
[EndTime "10:31:59 PDT"]
[Termination "Uživatel DavidekIII zvítězil na čas"]

1. d4 {[%clk 0:03:00.9]} 1... d5 {[%clk 0:02:59]} 2. c4 {[%clk 0:02:58.7]} 2...
Nc6 {[%clk 0:02:57.7]} 3. Nf3 {[%clk 0:02:56.7]} 3... Bg4 {[%clk 0:02:56.8]} 4.
Bg5 {[%clk 0:02:55.6]} 4... f6 {[%clk 0:02:55]} 5. Bh4 {[%clk 0:02:50.7]} 5...
Qd7 {[%clk 0:02:52.9]} 6. Nc3 {[%clk 0:02:44.4]} 6... e6 {[%clk 0:02:51.2]} 7.
e3 {[%clk 0:02:42.4]} 7... O-O-O {[%clk 0:02:50.3]} 8. Be2 {[%clk 0:02:33]} 8...
g5 {[%clk 0:02:47.5]} 9. Bg3 {[%clk 0:02:31.7]} 9... h5 {[%clk 0:02:45]} 10. h3
{[%clk 0:02:29.1]} 10... Bxf3 {[%clk 0:02:43.1]} 11. Bxf3 {[%clk 0:02:30]} 11...
Bd6 {[%clk 0:02:19.8]} 12. Bxd6 {[%clk 0:02:04.6]} 12... Qxd6 {[%clk 0:02:17.5]}
13. cxd5 {[%clk 0:02:00.7]} 13... exd5 {[%clk 0:02:09.6]} 14. Bxd5 {[%clk
0:01:55.1]} 14... Nge7 {[%clk 0:02:04.2]} 15. Bb3 {[%clk 0:01:41.4]} 15... Kb8
{[%clk 0:01:57.6]} 16. Qd2 {[%clk 0:01:32]} 16... Ne5 {[%clk 0:01:54.5]} 17.
O-O-O {[%clk 0:01:29.4]} 17... N5c6 {[%clk 0:01:38.6]} 18. Kb1 {[%clk
0:01:27.3]} 18... f5 {[%clk 0:01:35.7]} 19. Nb5 {[%clk 0:01:01.4]} 19... Qf6
{[%clk 0:01:33.9]} 20. Qc2 {[%clk 0:00:55.6]} 20... a6 {[%clk 0:01:30]} 21. Nxc7
{[%clk 0:00:46.5]} 21... Kxc7 {[%clk 0:01:28.2]} 22. d5 {[%clk 0:00:46.3]} 22...
Kb8 {[%clk 0:01:26.3]} 23. dxc6 {[%clk 0:00:45.1]} 23... Nxc6 {[%clk 0:01:26.1]}
24. a3 {[%clk 0:00:42.8]} 24... f4 {[%clk 0:01:21.5]} 25. Bd5 {[%clk 0:00:32.5]}
25... fxe3 {[%clk 0:01:08.4]} 26. fxe3 {[%clk 0:00:33.4]} 26... Ne5 {[%clk
0:01:02]} 27. Qb3 {[%clk 0:00:25]} 27... Rh7 {[%clk 0:00:55.6]} 28. Rhf1 {[%clk
0:00:20.3]} 28... Qe7 {[%clk 0:00:47.2]} 29. Ka2 {[%clk 0:00:19]} 29... Rc8
{[%clk 0:00:35.8]} 30. Rc1 {[%clk 0:00:14.3]} 30... Rxc1 {[%clk 0:00:24]} 31.
Rxc1 {[%clk 0:00:15.2]} 31... Qd6 {[%clk 0:00:22]} 32. e4 {[%clk 0:00:12.9]}
32... g4 {[%clk 0:00:20.6]} 33. Rd1 {[%clk 0:00:11.3]} 33... gxh3 {[%clk
0:00:19.2]} 34. gxh3 {[%clk 0:00:09.2]} 34... Qf6 {[%clk 0:00:16.1]} 35. Qg3
{[%clk 0:00:07]} 35... Rc7 {[%clk 0:00:14.9]} 36. Qg8+ {[%clk 0:00:05.4]} 36...
Ka7 {[%clk 0:00:14.5]} 37. Qg2 {[%clk 0:00:04.2]} 37... Qd6 {[%clk 0:00:13.7]}
38. Qd2 {[%clk 0:00:03.4]} 38... Nc4 {[%clk 0:00:12.6]} 39. Qd4+ {[%clk
0:00:02.7]} 39... Ka8 {[%clk 0:00:11.5]} 40. Bxc4 {[%clk 0:00:02.8]} 40... Qxd4
{[%clk 0:00:10.1]} 41. Rxd4 {[%clk 0:00:03.7]} 41... Re7 {[%clk 0:00:09.6]} 42.
Bd5 {[%clk 0:00:04.1]} 42... Ka7 {[%clk 0:00:09.8]} 43. Rd3 {[%clk 0:00:04.7]}
43... b5 {[%clk 0:00:09.8]} 44. Rg3 {[%clk 0:00:05]} 44... Kb6 {[%clk
0:00:10.4]} 45. Rg6+ {[%clk 0:00:05.4]} 45... Kc5 {[%clk 0:00:10.6]} 46. Kb3
{[%clk 0:00:05.9]} 46... Kd4 {[%clk 0:00:10.7]} 47. Rg5 {[%clk 0:00:06.3]} 47...
Rc7 {[%clk 0:00:09.1]} 48. Rxh5 {[%clk 0:00:05.7]} 48... a5 {[%clk 0:00:09.2]}
49. Rh6 {[%clk 0:00:05.3]} 49... a4+ {[%clk 0:00:09.4]} 50. Ka2 {[%clk
0:00:05.9]} 50... b4 {[%clk 0:00:08.8]} 51. axb4 {[%clk 0:00:05.4]} 51... a3
{[%clk 0:00:08.6]} 52. Kxa3 {[%clk 0:00:03.8]} 52... Ra7+ {[%clk 0:00:07.9]} 53.
Kb3 {[%clk 0:00:04.3]} 53... Rc7 {[%clk 0:00:07.2]} 54. Rc6 {[%clk 0:00:04.6]}
54... Rh7 {[%clk 0:00:07.1]} 55. Rc4+ {[%clk 0:00:04.4]} 55... Ke5 {[%clk
0:00:07]} 56. Rc3 {[%clk 0:00:04.5]} 56... Kd6 {[%clk 0:00:06.6]} 57. b5 {[%clk
0:00:04.9]} 57... Ke5 {[%clk 0:00:06]} 58. Kb4 {[%clk 0:00:05.3]} 58... Kd4
{[%clk 0:00:05.9]} 59. b6 {[%clk 0:00:05]} 59... Rh6 {[%clk 0:00:04.9]} 60. Rc4+
{[%clk 0:00:04.1]} 60... Ke5 {[%clk 0:00:04.2]} 61. Kb5 {[%clk 0:00:05]} 61...
Rxh3 {[%clk 0:00:03.5]} 62. b4 {[%clk 0:00:05.2]} 62... Rh7 {[%clk 0:00:02.2]}
63. b7 {[%clk 0:00:05.4]} 1-0

[Event "Betsys MČR v online bleskovém šachu 2021"]
[Site "Chess.com"]
[Date "2021.04.17"]
[Round "9"]
[White "ghostdog777"]
[Black "Filipdol"]
[Result "1-0"]
[WhiteElo "2166"]
[BlackElo "1904"]
[TimeControl "180+1"]
[EndTime "10:32:04 PDT"]
[Termination "Uživatel ghostdog777 zvítězil matem"]

1. e4 {[%clk 0:02:59.7]} 1... c5 {[%clk 0:02:59.7]} 2. Nf3 {[%clk 0:02:58.7]}
2... a6 {[%clk 0:02:59.9]} 3. c3 {[%clk 0:02:57.6]} 3... d5 {[%clk 0:02:59.2]}
4. exd5 {[%clk 0:02:57.8]} 4... Qxd5 {[%clk 0:02:59.8]} 5. d4 {[%clk 0:02:58.5]}
5... Nf6 {[%clk 0:02:59.7]} 6. Be3 {[%clk 0:02:56]} 6... e6 {[%clk 0:02:58.7]}
7. c4 {[%clk 0:02:55.6]} 7... Qd8 {[%clk 0:02:49.9]} 8. Qa4+ {[%clk 0:02:36.3]}
8... Bd7 {[%clk 0:02:39.9]} 9. Qb3 {[%clk 0:02:35.4]} 9... Qc7 {[%clk
0:02:38.1]} 10. Nc3 {[%clk 0:02:28.6]} 10... cxd4 {[%clk 0:02:24.9]} 11. Bxd4
{[%clk 0:02:28.6]} 11... Nc6 {[%clk 0:02:20.7]} 12. Bb6 {[%clk 0:02:26.7]} 12...
Qf4 {[%clk 0:02:10.5]} 13. Be2 {[%clk 0:02:16.7]} 13... Be7 {[%clk 0:01:59.4]}
14. O-O {[%clk 0:02:15.9]} 14... O-O {[%clk 0:01:58.6]} 15. Rad1 {[%clk
0:02:13.3]} 15... Qb8 {[%clk 0:01:35.1]} 16. Rfe1 {[%clk 0:01:55.8]} 16... Bd8
{[%clk 0:01:23.5]} 17. Bc5 {[%clk 0:01:53.1]} 17... Be7 {[%clk 0:01:23.5]} 18.
Bxe7 {[%clk 0:01:45.9]} 18... Nxe7 {[%clk 0:01:22.6]} 19. Bd3 {[%clk 0:01:44.1]}
19... Bc6 {[%clk 0:01:18]} 20. Ne5 {[%clk 0:01:43.9]} 20... Qc7 {[%clk
0:01:13.6]} 21. Qc2 {[%clk 0:01:39.3]} 21... h6 {[%clk 0:01:10.4]} 22. Qe2
{[%clk 0:01:38.1]} 22... Rad8 {[%clk 0:01:03.6]} 23. h3 {[%clk 0:01:14.8]} 23...
Nd7 {[%clk 0:00:51.6]} 24. Nxc6 {[%clk 0:00:45.3]} 24... Nxc6 {[%clk 0:00:44]}
25. b3 {[%clk 0:00:44.7]} 25... Nde5 {[%clk 0:00:38.6]} 26. Be4 {[%clk
0:00:41.4]} 26... Rxd1 {[%clk 0:00:33.6]} 27. Rxd1 {[%clk 0:00:40.9]} 27... Rd8
{[%clk 0:00:34]} 28. Re1 {[%clk 0:00:40]} 28... Nd7 {[%clk 0:00:31.6]} 29. Bb1
{[%clk 0:00:29.9]} 29... Nf6 {[%clk 0:00:30.6]} 30. Qc2 {[%clk 0:00:25.6]} 30...
Nd4 {[%clk 0:00:29.5]} 31. Qc1 {[%clk 0:00:23.6]} 31... Nc6 {[%clk 0:00:24.1]}
32. Qe3 {[%clk 0:00:22.8]} 32... Qe7 {[%clk 0:00:20.6]} 33. Qg3 {[%clk
0:00:19.6]} 33... Qd6 {[%clk 0:00:15.6]} 34. Qxd6 {[%clk 0:00:18.2]} 34... Rxd6
{[%clk 0:00:16.5]} 35. Re2 {[%clk 0:00:18.2]} 35... Nd4 {[%clk 0:00:16.3]} 36.
Re1 {[%clk 0:00:14.7]} 36... Kf8 {[%clk 0:00:15.6]} 37. Kf1 {[%clk 0:00:14.4]}
37... Ke7 {[%clk 0:00:15.7]} 38. Rc1 {[%clk 0:00:13.8]} 38... Nc6 {[%clk
0:00:15.2]} 39. a3 {[%clk 0:00:13.1]} 39... Nd7 {[%clk 0:00:15.1]} 40. b4 {[%clk
0:00:13.2]} 40... Nde5 {[%clk 0:00:12.2]} 41. c5 {[%clk 0:00:13.1]} 41... Rd8
{[%clk 0:00:12]} 42. Ne4 {[%clk 0:00:12.4]} 42... Nd3 {[%clk 0:00:11]} 43. Rd1
{[%clk 0:00:09.8]} 43... Nde5 {[%clk 0:00:09.6]} 44. Rxd8 {[%clk 0:00:09.7]}
44... Kxd8 {[%clk 0:00:09.2]} 45. Nd6 {[%clk 0:00:10.3]} 45... Kc7 {[%clk
0:00:08.1]} 46. f4 {[%clk 0:00:10.5]} 46... Nc4 {[%clk 0:00:05.8]} 47. Nxc4
{[%clk 0:00:08.9]} 47... Nd4 {[%clk 0:00:05]} 48. Nd6 {[%clk 0:00:08]} 48... f6
{[%clk 0:00:04.3]} 49. Kf2 {[%clk 0:00:07.3]} 49... b6 {[%clk 0:00:03.1]} 50.
Ke3 {[%clk 0:00:07.1]} 50... bxc5 {[%clk 0:00:03.3]} 51. bxc5 {[%clk 0:00:06.6]}
51... Nb5 {[%clk 0:00:04.2]} 52. a4 {[%clk 0:00:04.4]} 52... Nxd6 {[%clk
0:00:03.8]} 53. cxd6+ {[%clk 0:00:04.6]} 53... Kxd6 {[%clk 0:00:04.7]} 54. Kd4
{[%clk 0:00:05.1]} 54... Kc6 {[%clk 0:00:04.8]} 55. Bd3 {[%clk 0:00:02.9]} 55...
e5+ {[%clk 0:00:05.7]} 56. fxe5 {[%clk 0:00:01.8]} 56... f5 {[%clk 0:00:06.3]}
57. Kc4 {[%clk 0:00:01.5]} 57... g6 {[%clk 0:00:06.3]} 58. a5 {[%clk 0:00:01.6]}
58... f4 {[%clk 0:00:06.8]} 59. h4 {[%clk 0:00:01.3]} 59... f3 {[%clk
0:00:07.7]} 60. Be4+ {[%clk 0:00:01.2]} 60... Kc7 {[%clk 0:00:05]} 61. Bxf3
{[%clk 0:00:02.1]} 61... g5 {[%clk 0:00:05.4]} 62. Bd5 {[%clk 0:00:02.4]} 62...
g4 {[%clk 0:00:05.5]} 63. Kc5 {[%clk 0:00:02.7]} 63... g3 {[%clk 0:00:06.4]} 64.
e6 {[%clk 0:00:02.7]} 64... Kd8 {[%clk 0:00:06.6]} 65. Kd6 {[%clk 0:00:02.5]}
65... Ke8 {[%clk 0:00:06.2]} 66. e7 {[%clk 0:00:03.4]} 66... h5 {[%clk
0:00:04.6]} 67. Bc6+ {[%clk 0:00:04.3]} 67... Kf7 {[%clk 0:00:05]} 68. e8=Q+
{[%clk 0:00:04.5]} 68... Kf6 {[%clk 0:00:05.9]} 69. Qe7+ {[%clk 0:00:04.9]}
69... Kf5 {[%clk 0:00:06.8]} 70. Qg5# {[%clk 0:00:04.9]} 1-0